bitfinex/quotes_BTCUSD_20250515
["timestamp","ask_amount","ask_price","bid_price","bid_amount"]
[1747274494199,0.04853245,103020.0,103010.0,0.60851918]
[1747274494419,0.21355057,103020.0,103010.0,0.59881186]
[1747274494637,0.00970657,103020.0,103010.0,0.60851908]
[1747274494884,0.20382412,103030.0,103010.0,0.61822612]
[1747274495100,0.21352974,103030.0,103020.0,0.03264113]
[1747274495523,0.21352974,103030.0,103020.0,0.23648504]
[1747274495734,0.21352974,103030.0,103020.0,0.24425066]
[1747274496032,0.01941096,103030.0,103020.0,0.25395732]
[1747274496243,0.1941156,103040.0,103030.0,0.25967069]
[1747274496465,0.19408054,103050.0,103040.0,0.05584581]
[1747274496679,0.01940682,103050.0,103040.0,0.27129502]
[1747274496903,0.03881458,103050.0,103040.0,0.26935417]
[1747274497339,0.04851822,103050.0,103040.0,0.26935417]
[1747274497784,0.03881486,103050.0,103040.0,0.26935417]
[1747274498005,0.00970327,103050.0,103040.0,0.61905857]
[1747274498225,0.01940673,103050.0,103040.0,0.61905857]
[1747274498442,0.22316972,103060.0,103050.0,0.5840883]
[1747274498675,0.23287271,103060.0,103050.0,0.59379195]
[1747274498885,0.038811,103060.0,103050.0,0.60349541]
[1747274499104,0.04851408,103060.0,103050.0,0.60349541]
[1747274499318,0.02910801,103060.0,103050.0,0.85469962]
[1747274499538,0.038811,103060.0,103050.0,0.8392928]
[1747274499996,0.21346759,103060.0,103050.0,0.61610085]
[1747274500210,0.21346759,103060.0,103050.0,0.62680487]
[1747274500641,0.21346759,103060.0,103050.0,0.6365088]
[1747274500857,0.21346759,103060.0,103050.0,0.84029308]
[1747274501301,0.21337908,103060.0,103050.0,0.83058934]
[1747274501520,0.01940485,103060.0,103050.0,1.06959233]
[1747274501750,0.22320144,103070.0,103060.0,0.2356646]
[1747274501979,0.21364057,103070.0,103060.0,0.24536721]
[1747274502201,0.21364057,103070.0,103060.0,0.25506991]
[1747274502707,0.19411417,103080.0,103070.0,0.0314]
[1747274502953,0.19411417,103080.0,103070.0,0.23514502]
[1747274503178,0.00970092,103080.0,103070.0,0.24484697]
[1747274503405,0.00970035,103080.0,103070.0,0.61879106]
[1747274503620,0.03880254,103080.0,103070.0,0.61879106]
[1747274504060,0.03880254,103080.0,103070.0,0.60908958]
[1747274504273,0.03880254,103080.0,103070.0,0.61879106]
[1747274504495,0.02910153,103080.0,103070.0,0.61879106]
[1747274504703,0.03880254,103080.0,103070.0,0.61879106]
[1747274504928,0.02910153,103080.0,103070.0,0.62079106]
[1747274505367,0.02909926,103090.0,103080.0,0.26876736]
[1747274505586,0.03879933,103090.0,103080.0,0.60876736]
[1747274505795,0.03879933,103090.0,103080.0,0.60876755]
[1747274505796,0.04849959,103090.0,103080.0,0.60876755]
[1747274506012,0.01939929,103090.0,103080.0,0.61846809]
[1747274506244,0.02909926,103090.0,103080.0,0.61846809]
[1747274506469,0.03879933,103090.0,103080.0,0.61846809]
[1747274506681,0.03879933,103090.0,103080.0,0.61946809]
[1747274506893,0.04849949,103090.0,103080.0,0.61946809]
[1747274507100,0.01939929,103090.0,103080.0,0.61946809]
[1747274507313,0.02909936,103090.0,103080.0,0.61946809]
[1747274507777,0.02909936,103090.0,103080.0,1.07278809]
[1747274507998,0.03879933,103090.0,103080.0,1.07278809]
[1747274508224,0.00969922,103100.0,103090.0,0.22310515]
[1747274508440,0.19407255,103110.0,103100.0,0.04634085]
[1747274508441,0.21336388,103110.0,103100.0,0.04634085]
[1747274508654,0.21350472,103110.0,103100.0,0.04634085]
[1747274509124,0.20380663,103110.0,103100.0,0.04634085]
[1747274509348,0.20380663,103110.0,103100.0,0.24226691]
[1747274509565,0.20380663,103110.0,103100.0,0.25002649]
[1747274509780,0.20380663,103110.0,103100.0,0.04634085]
[1747274510002,0.19410844,103110.0,103100.0,0.04634085]
[1747274510702,0.19410844,103110.0,103100.0,0.01554085]
[1747274510925,0.29141784,103110.0,103100.0,0.01554085]
[1747274511606,0.29141784,103110.0,103100.0,0.01654085]
[1747274512488,0.32231784,103110.0,103100.0,0.002]
[1747274514110,0.6946114,103110.0,103100.0,0.002]
[1747274514377,0.32231784,103110.0,103100.0,0.002]
[1747274514878,0.82680344,103110.0,103100.0,0.002]
[1747274515101,0.55019784,103110.0,103100.0,0.002]
[1747274515965,0.54938298,103110.0,103100.0,0.002]
[1747274516805,0.88424858,103110.0,103100.0,0.002]
[1747274519451,0.60764298,103110.0,103100.0,0.002]
[1747274519629,0.88424858,103110.0,103100.0,0.002]
[1747274520226,0.89316812,103110.0,103100.0,0.002]
[1747274520968,1.23316812,103110.0,103100.0,0.002]
[1747274525506,1.50977372,103110.0,103100.0,0.002]
[1747274526120,1.51977372,103110.0,103100.0,0.002]
[1747274526324,2.29698312,103110.0,103100.0,0.002]
[1747274527441,2.29698312,103110.0,103100.0,0.001]
[1747274527662,2.29698312,103110.0,103050.0,0.6773796]
[1747274527663,0.02910736,103060.0,103050.0,0.6773796]
[1747274527878,0.03881016,103060.0,103050.0,0.68708315]
[1747274528133,0.0485139,103060.0,103050.0,0.68708315]
[1747274528360,0.03881138,103060.0,103050.0,0.68708315]
[1747274528592,0.22317048,103060.0,103050.0,0.68708315]
[1747274528799,0.01940569,103060.0,103050.0,0.70078651]
[1747274529009,0.02910868,103060.0,103050.0,0.7009274]
[1747274529217,0.03881176,103060.0,103050.0,0.7049274]
[1747274529432,0.23287347,103060.0,103050.0,0.68552049]
[1747274529886,0.23287347,103060.0,103050.0,0.61804767]
[1747274530093,0.23287347,103060.0,103050.0,0.62775122]
[1747274530311,0.01940456,103060.0,103050.0,0.62775065]
[1747274530524,0.00970176,103070.0,103060.0,0.22316963]
[1747274530751,0.2328504,103070.0,103060.0,0.2347647]
[1747274530954,0.22314873,103070.0,103060.0,0.2347647]
[1747274531170,0.22314873,103070.0,103060.0,0.24446759]
[1747274531374,0.22314873,103070.0,103060.0,0.25417039]
[1747274531817,0.22314873,103070.0,103060.0,0.25917039]
[1747274532275,0.22314873,103070.0,103060.0,0.24946759]
[1747274532487,0.21344697,103070.0,103060.0,0.24946759]
[1747274532651,0.21344697,103070.0,103060.0,0.036]
[1747274532865,0.21344697,103070.0,103060.0,0.04570299]
[1747274533059,0.21344697,103070.0,103060.0,0.04764332]
[1747274533396,0.21344697,103070.0,103060.0,0.24170503]
[1747274533604,0.21344697,103070.0,103060.0,0.2397647]
[1747274533813,0.21344697,103070.0,103060.0,0.25917001]
[1747274535276,0.01940306,103070.0,103060.0,0.62341328]
[1747274535491,0.01940296,103070.0,103060.0,0.62341328]
[1747274535696,0.19404835,103090.0,103080.0,0.05524205]
[1747274535924,0.19404835,103090.0,103080.0,0.04748087]
[1747274536555,0.19404835,103090.0,103080.0,0.04554085]
[1747274537006,0.19604835,103090.0,103080.0,0.04554085]
[1747274537242,0.19604835,103090.0,103080.0,0.04748087]
[1747274540116,0.19604835,103090.0,103080.0,0.04554085]
[1747274542323,0.19604835,103090.0,103080.0,0.04748083]
[1747274542495,0.19604835,103090.0,103080.0,0.25120589]
[1747274542738,0.19604835,103090.0,103080.0,0.24926591]
[1747274542893,0.19604835,103090.0,103080.0,0.04554085]
[1747274543092,0.19604835,103090.0,103080.0,0.05718203]
[1747274543333,0.2144048,103090.0,103080.0,0.600907]
[1747274543487,0.2144048,103090.0,103080.0,0.61836829]
[1747274543488,0.03979895,103090.0,103080.0,0.61836829]
[1747274543695,0.04849902,103090.0,103080.0,0.62136829]
[1747274543899,0.23280531,103090.0,103080.0,0.61166775]
[1747274544102,0.23280531,103090.0,103080.0,0.61366775]
[1747274544310,0.02909955,103090.0,103080.0,0.62036829]
[1747274544663,0.03879971,103090.0,103080.0,0.62436829]
[1747274544901,0.03879971,103090.0,103080.0,0.62836829]
[1747274545084,0.3104267,103100.0,103090.0,0.2361053]
[1747274545282,0.3104267,103100.0,103090.0,0.24580527]
[1747274545533,0.3104267,103100.0,103090.0,0.25550515]
[1747274545744,0.19315274,103110.0,103100.0,0.04694085]
[1747274546381,0.19329778,103110.0,103100.0,0.04694085]
[1747274546585,0.19329778,103110.0,103100.0,0.0488805]
[1747274546793,0.19329778,103110.0,103100.0,0.04694085]
[1747274547385,0.19329778,103110.0,103100.0,0.04794085]
[1747274547782,0.19329778,103110.0,103100.0,0.0508805]
[1747274548057,0.19329778,103110.0,103100.0,0.06057982]
[1747274548268,0.19329778,103110.0,103100.0,0.26426546]
[1747274548269,0.00014504,103110.0,103100.0,0.26426546]
[1747274548472,0.02923876,103110.0,103100.0,0.63142245]
[1747274548632,0.02923876,103110.0,103100.0,0.62172379]
[1747274548907,0.22320636,103110.0,103100.0,0.62172397]
[1747274549034,0.02923876,103110.0,103100.0,0.63142282]
[1747274549237,0.03893714,103110.0,103100.0,0.63142282]
[1747274550065,0.22320712,103110.0,103100.0,0.62172397]
[1747274550479,0.21350921,103110.0,103100.0,0.62172397]
[1747274550879,0.21350921,103110.0,103100.0,0.61202494]
[1747274551081,0.19411264,103110.0,103100.0,0.38894085]
[1747274555417,0.19411264,103110.0,103100.0,0.37264085]
[1747274555620,0.19411264,103110.0,103100.0,0.35654085]
[1747274555798,0.19411264,103110.0,103100.0,0.37204085]
[1747274557573,0.32192204,103110.0,103100.0,0.01654085]
[1747274557774,0.32192204,103110.0,103100.0,0.002]
[1747274558010,0.32192204,103110.0,103100.0,0.01654085]
[1747274558167,0.32192204,103110.0,103100.0,0.002]
[1747274558331,0.32192204,103110.0,103100.0,0.01654085]
[1747274564864,0.32192204,103110.0,103100.0,0.002]
[1747274566945,0.59852764,103110.0,103100.0,0.002]
[1747274567353,0.32192204,103110.0,103100.0,0.002]
[1747274568624,0.59852764,103110.0,103100.0,0.002]
[1747274568832,0.82646033,103110.0,103100.0,0.002]
[1747274569421,1.22466033,103110.0,103100.0,0.002]
[1747274569568,1.32196973,103110.0,103100.0,0.002]
[1747274569783,1.60857533,103110.0,103100.0,0.002]
[1747274569989,2.02745533,103110.0,103100.0,0.002]
[1747274570618,2.02745533,103110.0,103100.0,0.001]
[1747274570823,2.02845533,103110.0,103100.0,0.001]
[1747274571030,0.2449465,103070.0,103060.0,0.09189159]
[1747274571233,0.3422559,103070.0,103060.0,0.07735074]
[1747274571439,0.2037646,103060.0,103050.0,0.41735074]
[1747274571648,0.301074,103060.0,103050.0,0.43189159]
[1747274572075,0.301074,103060.0,103050.0,0.09189159]
[1747274572300,0.301074,103060.0,103050.0,0.07749163]
[1747274573374,0.301074,103060.0,103050.0,0.00014089]
[1747274573375,0.316274,103060.0,103050.0,0.00014089]
[1747274573594,0.332574,103060.0,103050.0,0.00014089]
[1747274573814,0.332574,103060.0,103050.0,0.00414089]
[1747274575541,0.301074,103060.0,103050.0,0.00814089]
[1747274578159,0.2134674,103060.0,103050.0,0.2584663]
[1747274578539,0.20374502,103070.0,103060.0,0.03104085]
[1747274578727,0.30105442,103070.0,103060.0,0.03104085]
[1747274579019,0.30105442,103070.0,103060.0,0.04694085]
[1747274580634,0.30105442,103070.0,103060.0,0.04894085]
[1747274581015,0.30105442,103070.0,103060.0,0.01854085]
[1747274585971,0.31075647,103070.0,103060.0,0.25360555]
[1747274586203,0.19404011,103080.0,103070.0,0.00970205]
[1747274586450,0.30105052,103080.0,103070.0,0.04584085]
[1747274586721,0.35925052,103080.0,103070.0,0.04584085]
[1747274586952,0.30105052,103080.0,103070.0,0.04584085]
[1747274587652,0.30105052,103080.0,103070.0,0.04784085]
[1747274588115,0.30105052,103080.0,103070.0,0.01654085]
[1747274589301,0.30105052,103080.0,103070.0,0.03214085]
[1747274592953,0.30105052,103080.0,103070.0,0.01654085]
[1747274593366,0.30105052,103080.0,103070.0,0.04934085]
[1747274593810,0.20374112,103080.0,103070.0,0.04934085]
[1747274594756,0.20368392,103080.0,103070.0,0.04934085]
[1747274597329,0.20368392,103080.0,103070.0,0.03304085]
[1747274597800,0.30099332,103080.0,103070.0,0.01654085]
[1747274598044,0.33239332,103080.0,103070.0,0.002]
[1747274599477,0.30099332,103080.0,103070.0,0.002]
[1747274600975,0.30099332,103080.0,103070.0,0.01654085]
[1747274601205,0.20368392,103080.0,103070.0,0.03304085]
[1747274602452,0.20368392,103080.0,103070.0,0.01654085]
[1747274604469,0.20368392,103080.0,103070.0,0.04834085]
[1747274604642,0.20368392,103080.0,103070.0,0.25208587]
[1747274604853,0.20368392,103080.0,103070.0,0.26178792]
[1747274605038,0.20368392,103080.0,103070.0,0.05804299]
[1747274605410,0.20368392,103080.0,103070.0,0.26178782]
[1747274605600,0.20368392,103080.0,103070.0,0.05804299]
[1747274605842,0.01940174,103080.0,103070.0,0.25208587]
[1747274606053,0.19403625,103090.0,103070.0,0.61148902]
[1747274606254,0.19403625,103090.0,103080.0,0.2596672]
[1747274606456,0.22310487,103090.0,103080.0,0.26936802]
[1747274606863,0.22310487,103090.0,103080.0,0.27906875]
[1747274607081,0.21340527,103090.0,103080.0,0.48816802]
[1747274607402,0.21340527,103090.0,103080.0,0.83786865]
[1747274607808,0.0096996,103090.0,103080.0,0.82816755]
[1747274608025,0.02909955,103090.0,103080.0,0.83786809]
[1747274608265,0.02909955,103090.0,103080.0,0.83777909]
[1747274608481,0.01939939,103090.0,103080.0,0.83777909]
[1747274608768,0.00969903,103100.0,103090.0,0.25500515]
[1747274608978,0.22308333,103100.0,103090.0,0.24530565]
[1747274609202,0.21338458,103100.0,103090.0,0.24530565]
[1747274609413,0.20368555,103100.0,103090.0,0.04160026]
[1747274610554,0.20368555,103100.0,103090.0,0.0319]
[1747274612577,0.20368555,103100.0,103090.0,0.23560549]
[1747274612792,0.20368555,103100.0,103090.0,0.24530546]
[1747274613007,0.20368555,103100.0,103090.0,0.59500534]
[1747274613666,0.00969885,103100.0,103090.0,0.61154619]
[1747274613883,0.22306226,103110.0,103100.0,0.60498256]
[1747274614128,0.2232073,103110.0,103100.0,0.59528371]
[1747274614360,0.2232073,103110.0,103100.0,0.58558477]
[1747274614572,0.2135093,103110.0,103100.0,0.58558477]
[1747274614781,0.20381102,103110.0,103100.0,0.57588574]
[1747274614994,0.19411264,103110.0,103100.0,0.38189932]
[1747274615891,0.19411264,103110.0,103100.0,0.58558487]
[1747274616303,0.19411264,103110.0,103100.0,0.58658487]
[1747274616975,0.00984332,103110.0,103100.0,0.60598247]
[1747274617224,0.21350892,103110.0,103100.0,0.59628381]
[1747274618005,0.21350892,103110.0,103100.0,0.5962839]
[1747274618427,0.21350892,103110.0,103100.0,0.58658487]
[1747274619011,0.21350892,103110.0,103100.0,0.5962839]
[1747274619221,0.01954132,103110.0,103100.0,1.2502236]
[1747274619648,0.2133432,103120.0,103100.0,1.24052381]
[1747274619864,0.01939553,103110.0,103100.0,1.23932381]
[1747274620087,0.02909362,103110.0,103100.0,1.23932381]
[1747274620313,0.03879247,103110.0,103100.0,1.23932381]
[1747274620532,0.03879191,103110.0,103100.0,1.23832381]
[1747274620944,0.03879191,103110.0,103100.0,1.23932381]
[1747274621160,0.04849019,103110.0,103100.0,1.23932381]
[1747274621391,0.03879191,103110.0,103100.0,1.23932381]
[1747274622082,0.03879191,103110.0,103100.0,1.23832381]
[1747274622317,0.02909372,103110.0,103100.0,1.23832381]
[1747274622561,0.02909372,103110.0,103100.0,1.24032381]
[1747274622773,0.03879191,103110.0,103100.0,1.24032381]
[1747274623210,0.03879191,103110.0,103100.0,1.24132381]
[1747274623499,0.2352138,103130.0,103120.0,0.01454085]
[1747274623720,0.3325232,103130.0,103120.0,0.01454085]
[1747274624347,0.3325232,103130.0,103120.0,0.21835204]
[1747274624798,0.3335232,103130.0,103120.0,0.21835204]
[1747274625441,0.3345232,103130.0,103120.0,0.21835204]
[1747274626140,0.31271922,103130.0,103120.0,0.22804929]
[1747274626347,0.31271922,103130.0,103120.0,0.23774635]
[1747274626559,0.01169574,103130.0,103120.0,0.24744313]
[1747274626759,0.0310877,103130.0,103120.0,0.24744313]
[1747274626984,0.0310877,103130.0,103120.0,0.26344313]
[1747274627408,0.001,103130.0,103120.0,0.26344313]
[1747274627627,0.001,103130.0,103120.0,0.83818313]
[1747274628058,0.001,103130.0,103120.0,0.93549253]
[1747274628270,0.01938961,103140.0,103130.0,0.6100592]
[1747274628482,0.01938961,103140.0,103130.0,1.0211592]
[1747274628711,0.0252932,103160.0,103150.0,0.22782199]
[1747274628941,0.32074627,103160.0,103150.0,0.22782218]
[1747274629150,0.02956328,103160.0,103150.0,0.22782199]
[1747274629378,0.22343687,103160.0,103150.0,0.22782218]
[1747274629622,0.21374395,103160.0,103150.0,0.22782236]
[1747274630280,0.20405075,103160.0,103150.0,0.01454085]
[1747274630485,0.30136015,103160.0,103150.0,0.01454085]
[1747274630696,0.33326015,103160.0,103150.0,0.01454085]
[1747274631567,0.33526015,103160.0,103150.0,0.01454085]
[1747274631713,0.33326015,103160.0,103150.0,0.01454085]
[1747274631906,0.33426015,103160.0,103150.0,0.01454085]
[1747274632735,0.33526015,103160.0,103150.0,0.01454085]
[1747274634441,0.21330163,103140.0,103130.0,1.43200354]
[1747274635720,0.21330163,103140.0,103130.0,1.43400354]
[1747274635841,0.21330163,103140.0,103130.0,1.43600354]
[1747274636065,0.21330163,103140.0,103130.0,1.44569966]
[1747274636278,0.21330163,103140.0,103130.0,1.03459966]
[1747274636490,0.20360655,103140.0,103130.0,0.79538085]
[1747274636702,0.19391118,103140.0,103130.0,0.79526085]
[1747274636916,0.19391118,103140.0,103130.0,0.99888733]
[1747274637126,0.29122058,103140.0,103130.0,0.344]
[1747274637348,0.32392058,103140.0,103130.0,0.35854085]
[1747274637553,0.30782058,103140.0,103130.0,0.35854085]
[1747274638837,0.29122058,103140.0,103130.0,0.35854085]
[1747274640215,0.29122058,103140.0,103130.0,0.56216724]
[1747274640432,0.29122058,103140.0,103130.0,0.57186336]
[1747274640643,0.29122058,103140.0,103130.0,0.56216724]
[1747274640863,0.29122058,103140.0,103130.0,0.57186355]
[1747274641977,0.29122058,103140.0,103130.0,0.58155976]
[1747274642198,0.2266085,103150.0,103130.0,0.61745171]
[1747274642459,0.2266085,103150.0,103140.0,0.01454085]
[1747274642668,0.2105085,103150.0,103140.0,0.01454085]
[1747274642878,0.21042003,103150.0,103140.0,0.01454085]
[1747274643763,0.22682003,103150.0,103140.0,0.01454085]
[1747274644900,0.19382003,103150.0,103140.0,0.0252364]
[1747274645181,0.19382003,103150.0,103140.0,0.01554085]
[1747274645634,0.19382003,103150.0,103140.0,0.01654085]
[1747274645862,0.22452003,103150.0,103140.0,0.01654085]
[1747274653756,0.20912003,103150.0,103140.0,0.01654085]
[1747274653956,0.22472003,103150.0,103140.0,0.01654085]
[1747274655629,0.20912003,103150.0,103140.0,0.01654085]
[1747274657293,0.22452003,103150.0,103140.0,0.01654085]
[1747274659208,0.20912003,103150.0,103140.0,0.01654085]
[1747274663163,0.32232943,103150.0,103140.0,0.002]
[1747274665438,0.33132031,103150.0,103140.0,0.002]
[1747274666944,0.38952031,103150.0,103140.0,0.002]
[1747274668166,0.38052943,103150.0,103140.0,0.002]
[1747274673713,0.37052943,103150.0,103140.0,0.002]
[1747274686497,0.35462943,103150.0,103140.0,0.002]
[1747274687803,0.29642943,103150.0,103140.0,0.002]
[1747274688018,0.28112943,103150.0,103140.0,0.03194085]
[1747274688231,0.28112943,103150.0,103140.0,0.04764085]
[1747274689765,0.18382003,103150.0,103140.0,0.26094286]
[1747274691044,0.20405093,103160.0,103150.0,0.04634085]
[1747274691251,0.30136033,103160.0,103150.0,0.24023323]
[1747274691454,0.20405093,103160.0,103150.0,0.25962227]
[1747274691871,0.20405093,103160.0,103150.0,0.2693166]
[1747274692078,0.21374432,103160.0,103150.0,0.27901084]
[1747274692313,0.21474432,103160.0,103150.0,0.27901084]
[1747274692531,0.03056347,103160.0,103150.0,0.2887048]
[1747274692741,0.0412563,103160.0,103150.0,0.2887048]
[1747274693158,0.03156281,103160.0,103150.0,0.2887048]
[1747274693376,0.03156281,103160.0,103150.0,0.6287048]
[1747274693377,0.03156291,103160.0,103150.0,0.6287048]
[1747274693617,0.00248367,103160.0,103150.0,0.6287048]
[1747274694037,0.01217659,103160.0,103150.0,0.6287048]
[1747274694215,0.00248367,103160.0,103150.0,0.6287048]
[1747274694562,0.00248367,103160.0,103150.0,0.7260142]
[1747274694790,0.02086999,103160.0,103150.0,0.6287048]
[1747274694999,0.01986989,103160.0,103150.0,0.6287048]
[1747274695218,0.01986989,103160.0,103150.0,1.0640248]
[1747274695414,0.01986989,103160.0,103150.0,1.0650248]
[1747274696104,0.00983736,103160.0,103150.0,1.0650248]
[1747274697197,0.01953066,103160.0,103150.0,1.0650248]
[1747274697854,0.02922395,103160.0,103150.0,1.0650248]
[1747274698067,0.01953056,103160.0,103150.0,1.0650248]
[1747274698277,0.02922386,103160.0,103150.0,1.0650248]
[1747274699152,0.23279103,103160.0,103150.0,1.03582227]
[1747274699336,0.23279103,103160.0,103150.0,1.0455166]
[1747274699550,0.23279103,103160.0,103150.0,1.03582227]
[1747274699759,0.23279103,103160.0,103150.0,1.0455166]
[1747274700207,0.22309801,103160.0,103150.0,0.60162227]
[1747274700468,0.22309801,103160.0,103150.0,0.6113166]
[1747274700683,0.21340481,103160.0,103150.0,0.82250085]
[1747274700912,0.21340481,103160.0,103150.0,0.37304085]
[1747274701139,0.34311421,103160.0,103150.0,0.002]
[1747274709213,0.34311421,103160.0,103150.0,0.002]
[1747274711700,0.40131421,103160.0,103150.0,0.002]
[1747274719114,0.74131421,103160.0,103150.0,0.002]
[1747274720671,0.213343,103120.0,103110.0,0.79584085]
[1747274721933,0.213343,103120.0,103110.0,0.79618018]
[1747274722741,0.213343,103120.0,103110.0,0.80018018]
[1747274723366,0.213343,103120.0,103110.0,0.39308018]
[1747274723581,0.3106524,103120.0,103110.0,0.02288018]
[1747274723810,0.3427524,103120.0,103110.0,0.00833933]
[1747274724706,0.3427524,103120.0,103110.0,0.00433933]
[1747274724927,0.3427524,103120.0,103110.0,0.00533933]
[1747274725159,0.3427524,103120.0,103110.0,0.00133933]
[1747274725383,0.3427524,103120.0,103110.0,0.00233933]
[1747274725866,0.3427524,103120.0,103110.0,0.00133933]
[1747274726096,0.3427524,103120.0,103110.0,0.00033933]
[1747274726097,0.7409524,103120.0,103110.0,0.00033933]
[1747274726344,0.7439524,103120.0,103110.0,0.00033933]
[1747274726573,0.6877524,103120.0,103110.0,0.00033933]
[1747274726801,1.1204724,103120.0,103110.0,0.00033933]
[1747274730795,0.3156524,103120.0,103110.0,0.00033933]
[1747274732355,0.3156524,103120.0,103110.0,0.01543933]
[1747274733204,0.3156524,103120.0,103110.0,0.00033933]
[1747274735820,0.3156524,103120.0,103110.0,0.01613933]
[1747274736715,0.3156524,103120.0,103110.0,0.03068018]
[1747274736952,0.218343,103120.0,103110.0,0.25094606]
[1747274737187,0.218343,103120.0,103110.0,0.04728018]
[1747274738340,0.215343,103120.0,103110.0,0.04728018]
[1747274738564,0.216343,103120.0,103110.0,0.04728018]
[1747274738785,0.214343,103120.0,103110.0,0.04728018]
[1747274739008,0.215343,103120.0,103110.0,0.04728018]
[1747274739455,0.215343,103120.0,103110.0,0.04921962]
[1747274739683,0.215343,103120.0,103110.0,0.04728018]
[1747274739910,0.23473701,103120.0,103110.0,0.38728018]
[1747274740135,0.22504033,103120.0,103110.0,0.38728018]
[1747274740579,0.21534337,103120.0,103110.0,0.38728018]
[1747274745165,0.21534337,103120.0,103110.0,0.37068018]
[1747274745772,0.21534337,103120.0,103110.0,0.35488018]
[1747274746467,0.34405277,103120.0,103110.0,0.00033933]
[1747274751724,0.40225277,103120.0,103110.0,0.00033933]
[1747274756050,0.40112781,103120.0,103110.0,0.00033933]
[1747274766556,0.36972781,103120.0,103110.0,0.00033933]
[1747274766778,0.31152781,103120.0,103110.0,0.03303933]
[1747274767004,0.11870286,103120.0,103110.0,0.25610093]
[1747274767220,0.32234946,103120.0,103110.0,0.2464034]
[1747274767435,0.32234946,103120.0,103110.0,0.23670521]
[1747274767684,0.32234946,103120.0,103110.0,0.2464034]
[1747274767912,0.21534319,103120.0,103110.0,0.04758018]
[1747274768132,0.21534319,103120.0,103110.0,0.26094425]
[1747274768347,0.21534319,103120.0,103110.0,0.26094444]
[1747274769200,0.23473702,103120.0,103110.0,0.61064244]
[1747274769692,0.23473702,103120.0,103110.0,0.62034035]
[1747274769904,0.23473693,103120.0,103110.0,0.62034035]
[1747274770788,0.22504015,103120.0,103110.0,0.61064253]
[1747274771222,0.22504015,103120.0,103110.0,0.62034053]
[1747274771641,0.002,103120.0,103110.0,0.62034053]
[1747274771865,0.002,103120.0,103110.0,0.84579825]
[1747274772311,0.02139346,103120.0,103110.0,0.84579825]
[1747274772480,0.01169659,103120.0,103110.0,0.84579825]
[1747274772688,0.02139337,103120.0,103110.0,0.84579825]
[1747274773466,0.03109033,103120.0,103110.0,0.84579825]
[1747274774418,0.04078748,103120.0,103110.0,0.84579825]
[1747274775892,0.22504024,103120.0,103110.0,0.81670444]
[1747274776111,0.22504024,103120.0,103110.0,0.60334018]
[1747274776330,0.21534328,103120.0,103110.0,0.60334018]
[1747274776546,0.21534328,103120.0,103110.0,0.38758018]
[1747274777691,0.20564613,103120.0,103110.0,0.38758018]
[1747274779501,0.30295553,103120.0,103110.0,0.34033933]
[1747274781178,0.30295553,103120.0,103110.0,0.35553933]
[1747274781838,0.30295553,103120.0,103110.0,0.34033933]
[1747274782027,0.33435553,103120.0,103110.0,0.00033933]
[1747274787154,0.30295553,103120.0,103110.0,0.00033933]
[1747274790635,0.30295553,103120.0,103110.0,0.01543933]
[1747274790821,0.30295553,103120.0,103110.0,0.03043933]
[1747274803057,0.20564613,103120.0,103110.0,0.04498018]
[1747274804775,0.01169706,103120.0,103110.0,0.60998128]
[1747274804987,0.03109099,103120.0,103110.0,0.61773959]
[1747274805210,0.23473703,103120.0,103110.0,0.59834415]
[1747274805807,0.22504025,103120.0,103110.0,0.59834425]
[1747274806013,0.21534319,103120.0,103110.0,0.58864606]
[1747274806224,0.20564604,103120.0,103110.0,0.38498018]
[1747274806646,0.20564604,103120.0,103110.0,0.39467856]
[1747274807314,0.20564604,103120.0,103110.0,0.60859856]
[1747274808493,0.03109079,103120.0,103110.0,0.83166016]
[1747274808900,0.04078804,103120.0,103110.0,0.83166016]
[1747274809559,0.03109079,103120.0,103110.0,0.83166016]
[1747274810254,0.02139364,103120.0,103110.0,0.83166016]
[1747274810456,0.03109089,103120.0,103110.0,0.83166016]
[1747274811005,0.03009089,103120.0,103110.0,0.83166016]
[1747274811218,0.24343445,103120.0,103110.0,0.83166054]
[1747274811430,0.23273777,103120.0,103110.0,0.82396263]
[1747274811644,0.22304081,103120.0,103110.0,0.83366063]
[1747274811853,0.21334356,103120.0,103110.0,0.82696263]
[1747274812072,0.21334356,103120.0,103110.0,0.83666072]
[1747274812735,0.21334356,103120.0,103110.0,0.84635872]
[1747274812944,0.21334356,103120.0,103110.0,0.83666072]
[1747274813152,0.21334356,103120.0,103110.0,1.24776072]
[1747274813750,0.20364622,103120.0,103110.0,1.21866597]
[1747274813950,0.20364622,103120.0,103110.0,1.00474597]
[1747274814151,0.20364622,103120.0,103110.0,1.43226597]
[1747274815184,0.20364622,103120.0,103110.0,1.44196406]
[1747274816909,0.00969687,103120.0,103110.0,1.46135959]
[1747274817116,0.20364239,103130.0,103120.0,0.56788404]
[1747274817333,0.22303481,103130.0,103120.0,0.58848698]
[1747274817552,0.21333879,103130.0,103120.0,0.58848698]
[1747274817754,0.21333879,103130.0,103120.0,0.59818423]
[1747274817954,0.22303528,103130.0,103120.0,0.60788119]
[1747274818160,0.22303528,103130.0,103120.0,0.61857806]
[1747274818421,0.22303528,103130.0,103120.0,0.59918423]
[1747274818642,0.21333897,103130.0,103120.0,0.38584085]
[1747274819274,0.21333897,103130.0,103120.0,0.39653828]
[1747274819703,0.20364257,103130.0,103120.0,0.60018432]
[1747274820313,0.20364229,103130.0,103120.0,0.60018432]
[1747274820550,0.22453538,103150.0,103120.0,0.59048642]
[1747274820758,0.23269179,103140.0,103130.0,0.81420236]
[1747274820982,0.23269179,103140.0,103130.0,0.82195929]
[1747274821223,0.21330191,103140.0,103130.0,1.01644724]
[1747274821595,0.21330191,103140.0,103130.0,1.02614355]
[1747274822477,0.21330191,103140.0,103130.0,1.0455355]
[1747274822701,0.21430191,103140.0,103130.0,1.03583957]
[1747274823325,0.21430191,103140.0,103130.0,1.0455355]
[1747274823503,0.22399746,103140.0,103130.0,1.0455355]
[1747274823703,0.22499746,103140.0,103130.0,1.03583957]
[1747274823966,0.22399746,103140.0,103130.0,1.03583976]
[1747274824171,0.22299746,103140.0,103130.0,1.04553588]
[1747274824380,0.2036299,103150.0,103140.0,0.03074085]
[1747274824762,0.2036299,103150.0,103140.0,0.04624085]
[1747274825014,0.22677359,103160.0,103140.0,0.04624085]
[1747274825273,0.04089264,103170.0,103150.0,0.34969405]
[1747274825472,0.2132398,103170.0,103160.0,0.01454085]
[1747274825677,0.2132398,103170.0,103160.0,0.03074085]
[1747274825886,0.2132398,103170.0,103160.0,0.01454085]
[1747274826316,0.2436398,103170.0,103160.0,0.01454085]
[1747274826540,0.24468814,103170.0,103160.0,0.01454085]
[1747274826747,0.24368814,103170.0,103160.0,0.01454085]
[1747274827169,0.24568814,103170.0,103160.0,0.01454085]
[1747274828940,0.21866708,103160.0,103150.0,0.76564085]
[1747274829157,0.23396708,103160.0,103150.0,0.76564085]
[1747274829996,0.33127648,103160.0,103150.0,0.7511]
[1747274830327,0.33127648,103160.0,103150.0,0.7521]
[1747274830550,0.33127648,103160.0,103150.0,0.7531]